Cogmind - Beta 9.4 @@@ ROGUE MODE // 2020.02.03 @ 02:49:27 // AFD2018/Launchers Player: Judas Result: Destroyed by G-34 Mercenary with Small Laser Performance ------------- Evolutions (1) 500 Regions Visited (2) 400 Robots Destroyed (26) 130 Value Destroyed (563) 563 Prototype IDs (1) 20 Alien Tech Used (0) 0 Bonus (10) 10 TOTAL SCORE: 1623 Bonus ------- High Alert Combat Kills 10 Cogmind --------- Core Integrity 0/400 Matter 129/300 Energy 20/100 System Corruption 0% Temperature Cool (6) Movement Rolling (80) Location -9/Materials Parts ------- > --- POWER (1) -------- (None) > --- PROPULSION (3) --- Wheel Wheel > --- UTILITY (3) ------ Sensor Array > --- WEAPON (2) ------- Rocket Launcher > --- INVENTORY (4) ---- (None) Peak State ------------ > --- POWER ------------ (None) > --- PROPULSION ------- Light Treads Aluminum Leg > --- UTILITY ---------- Small Storage Unit > --- WEAPON ----------- Improved EM Shotgun EMP Blaster > --- INVENTORY -------- EMP Blaster Grenade Launcher Grenade Launcher Rocket Launcher Rocket Launcher Mini Grenade Launcher [Rating: 9] Favorites ----------- Power Light Ion Engine Engine Light Ion Engine Propulsion Aluminum Leg Treads Light Treads Leg Aluminum Leg Wheel Compact Wheel Utility Small Storage Unit Device Sensor Array Storage Small Storage Unit Weapon Grenade Launcher Energy Gun Improved EM Shotgun Launcher Grenade Launcher Build | -11 -10 -9 ------- Run | Scr Mat Mat Slots Evolved 2 | . . 2 Power . | . . . Propulsion 1 | . . 1 Utility 1 | . . 1 Weapon . | . . . Parts Attached 27 | 2 3 22 Power 2 | . 1 1 Engine 2 | . 1 1 Core . | . . . Reactor . | . . . Propulsion 9 | 1 2 6 Treads 1 | . . 1 Leg 5 | . 2 3 Wheel 3 | 1 . 2 Hover . | . . . Flight . | . . . Utility 2 | 1 . 1 Device 1 | . . 1 Storage 1 | 1 . . Processor . | . . . Hackware . | . . . Protection . | . . . Artifact . | . . . Weapon 14 | . . 14 Energy Gun 2 | . . 2 Energy Cannon . | . . . Ballistic Gun . | . . . Ballistic Cannon . | . . . Launcher 12 | . . 12 Special Weapon . | . . . Impact Weapon . | . . . Slashing Weapon . | . . . Piercing Weapon . | . . . Special Melee Weapon . | . . . Unidentified Prototypes 1 | . . 1 Parts Lost 15 | . . 15 Power 2 | . . 2 Propulsion 5 | . . 5 Utility 1 | . . 1 Weapon 7 | . . 7 Highest Loss Streak 13 | . . 13 Average Slot Usage (%) 58 | . 75 51 Engine 5 | . 9 3 Treads 3 | . . 4 Leg 13 | . 16 12 Wheel 2 | . 6 . Storage 11 | . 14 9 Energy Gun 1 | . . 2 Launcher 20 | . 28 16 Naked Turns 1 | . . 1 Heaviest Build 13 | 10 13 13 Greatest Support 20 | 16 20 20 Greatest Overweight (x) 2 | 1 1 2 Average Overweight (x) . | . . . Largest Inventory Capacity 6 | 6 6 6 Average Capacity 5 | 5 6 5 Most Carried 6 | 4 4 6 Average Carried 4 | 4 4 5 Final Capacity 6 | 6 6 4 Final Carried 4 | 4 4 . Class Distribution -------------------- 57% | Mutant 42% | Scavenger-Mutant Dominant Class ---------------- Scavenger-Mutant | -10/Materials Mutant | -9/Materials Resources | -11 -10 -9 ----------- Run | Scr Mat Mat Matter Collected 509 | 63 134 312 Remotely . | . . . Salvage Created 721 | 69 166 486 Parts 38 | 4 10 24 Haulers Intercepted 2 | . . 2 Recyclers Shooed . | . . . Parts Field Recycled . | . . . Retrieved Matter . | . . . Parts Self-Destructed . | . . . Prevented . | . . . Kills | -11 -10 -9 ------- Run | Scr Mat Mat Combat Hostiles Destroyed 13 | . 4 9 AOE 13 | . 4 9 Classes Destroyed 9 | 2 2 5 Worker 2 | . . 2 Tunneler 2 | 1 . 1 Hauler 2 | . . 2 Recycler 4 | 1 1 2 Operator 1 | . . 1 Watcher 2 | . 1 1 Swarmer 4 | . . 4 Grunt 8 | . 4 4 Brawler 1 | . . 1 Best Kill Streak 10 | 2 3 10 Combat Bots Only 8 | . 2 8 Max Kills in Single Turn 4 | 2 2 4 Gunslinging . | . . . Exploded 4 | . 2 4 Melee . | . . . Uniques/NPCs Destroyed . | . . . Combat | -11 -10 -9 -------- Run | Scr Mat Mat Damage Taken 1412 | . 102 1310 Core 424 | . 18 406 Absorbed by Shields . | . . . Core Remaining (%) 96 | 100 92 . Volleys Fired 28 | 1 8 19 Largest 2 | 2 2 2 Hottest 78 | 60 60 78 Shots Fired 39 | 2 11 26 Gun 7 | . . 7 Cannon . | . . . Launcher 32 | 2 11 19 Special . | . . . Kinetic . | . . . Thermal . | . . . Explosive 27 | 2 11 14 Electromagnetic 12 | . . 12 Robot Hit Streak 7 | 2 7 4 Robot Miss Streak 5 | . 4 5 Penetration Max . | . . . Secondary Targets . | . . . Shots Hit Robots 23 | 2 5 16 Core Hits 36 | 2 10 24 Critical Hits . | . . . Critical Kills . | . . . Critical Parts Destroyed . | . . . Melee Attacks . | . . . Impact . | . . . Slashing . | . . . Piercing . | . . . Sneak Attacks . | . . . Combat Hostiles . | . . . Follow-up Attacks . | . . . Damage Inflicted 1583 | 108 283 1192 Guns 124 | . . 124 Cannons . | . . . Explosions 1449 | 108 275 1066 Melee . | . . . Ramming 10 | . 8 2 Kinetic . | . . . Thermal 190 | . . 190 Explosive 1164 | 108 275 781 Electromagnetic 219 | . . 219 Impact . | . . . Slashing . | . . . Piercing . | . . . Highest Corruption . | . . . Average Corruption . | . . . Corruption Purged . | . . . Overload Shots . | . . . Overflow Damage 53 | . . 53 Projectiles . | . . . Explosions 53 | . . 53 Melee . | . . . Knockbacks . | . . . Impact . | . . . Kinetic . | . . . Secondary . | . . . Self-Inflicted Damage 295 | . 40 255 Shots 11 | . 2 9 Rammed 1 | . . 1 Targets Rammed 2 | . 1 1 Kicked 1 | . 1 . Crushed . | . . . Highest Temperature 18 | . 6 18 Average Temperature 6 | . 4 7 Received Heat Transfer 630 | . 36 594 Siege Activations . | . . . Robots Corrupted . | . . . Combat Hostiles . | . . . Parts Fried . | . . . Impact Corruptions . | . . . Robots Melted . | . . . Combat Hostiles . | . . . Parts Melted . | . . . Heat Transferred 200 | . . 200 Parts Sabotaged . | . . . Parts Stolen . | . . . Parts Stripped . | . . . Power Chain Reactions 2 | . . 2 Missiles Intercepted . | . . . Alert | -11 -10 -9 ------- Run | Scr Mat Mat Peak Influence 414 | 10 168 414 Average Influence 163 | 8 98 211 Maximum Alert Level 2 | . . 2 Low Security (%) 74 | 100 100 59 Level 1 22 | . . 35 Level 2 3 | . . 5 Level 3 . | . . . Level 4 . | . . . Level 5 . | . . . High Security . | . . . Max Security . | . . . Squads Dispatched 1 | . . 1 Investigation . | . . . Extermination . | . . . Reinforcement 1 | . . 1 Assault . | . . . Garrison . | . . . Intercept . | . . . Construction Impeded . | . . . Haulers Reinforced . | . . . Stealth | -11 -10 -9 --------- Run | Scr Mat Mat Distress Signals . | . . . Communications Jammed . | . . . Distress Signals . | . . . Times Spotted 23 | . 7 16 Peak Tracking Total 5 | . 3 5 Tactical Retreats . | . . . Traps | -11 -10 -9 ------- Run | Scr Mat Mat Traps Triggered . | . . . Indirectly . | . . . Trap Hack Attempts . | . . . Triggered . | . . . Disarmed . | . . . Reprogrammed . | . . . Reused . | . . . Traps Extracted . | . . . Installed . | . . . Triggered . | . . . Machines | -11 -10 -9 ---------- Run | Scr Mat Mat Machines Disabled 12 | . 3 9 Max in Single Turn 5 | . 1 5 Machines Sabotaged . | . . . Garrisons Compromised . | . . . Overloaded Fab Kills . | . . . Fab Network Shutdowns . | . . . Hacking | -11 -10 -9 --------- Run | Scr Mat Mat Machines Accessed . | . . . Terminals . | . . . Fabricators . | . . . Repair Stations . | . . . Recycling Units . | . . . Scanalyzers . | . . . Garrison Access . | . . . Total Hacks . | . . . Successful . | . . . Failed . | . . . Catastrophic . | . . . Database Lockouts . | . . . Manual . | . . . Terminals . | . . . Fabricators . | . . . Repair Stations . | . . . Recycling Units . | . . . Scanalyzers . | . . . Garrison Access . | . . . Terminal Hacks . | . . . Fabricator Hacks . | . . . Repair Station Hacks . | . . . Recycling Unit Hacks . | . . . Scanalyzer . | . . . Garrison Access Hacks . | . . . Unauthorized Hacks . | . . . Terminals . | . . . Fabricators . | . . . Repair Stations . | . . . Recycling Units . | . . . Scanalyzers . | . . . Garrison Access . | . . . Data Cores Recovered . | . . . Used . | . . . Hacking Detections . | . . . Full Trace Events . | . . . Feedback Events . | . . . Feedback Blocked . | . . . Robot Schematics Acquired . | . . . Robots Built . | . . . Matter . | . . . Time . | . . . Total Robot Build Rating . | . . . Part Schematics Acquired . | . . . Parts Built . | . . . Matter . | . . . Time . | . . . Total Part Build Rating . | . . . Parts Repaired . | . . . Time . | . . . Parts Recycled . | . . . Recycled Matter . | . . . Retrieved Matter . | . . . Retrieved Components . | . . . Parts Scanalyzed . | . . . Part Schematics Acquired . | . . . Parts Damaged . | . . . Bothacking | -11 -10 -9 ------------ Run | Scr Mat Mat Used RIF Installer . | . . . Robots Hacked . | . . . Non-combat . | . . . Combat . | . . . Robot Hacks Applied . | . . . Relay Couplers Released . | . . . Robots Rewired . | . . . Allies Hacked . | . . . Hacks Repelled . | . . . Allies | -11 -10 -9 -------- Run | Scr Mat Mat Total Allies . | . . . Largest Group . | . . . Highest-Rated Group . | . . . Highest-Rated Ally . | . . . Total Orders . | . . . Ally Attacks . | . . . Total Damage . | . . . Kills . | . . . Allies Corrupted . | . . . Allies Melted . | . . . Intel | -11 -10 -9 ------- Run | Scr Mat Mat Robot Analysis Total . | . . . Derelict Logs Recovered . | . . . Drone Launches . | . . . Drone Recoveries . | . . . Exploration | -11 -10 -9 ------------- Run | Scr Mat Mat Turns Passed 561 | 47 156 358 Spaces Moved 345 | 18 117 210 Core 47 | 8 . 39 Treads 41 | . . 41 Legs 195 | . 68 127 Wheels 62 | 10 49 3 Hover . | . . . Flight . | . . . Fastest Speed 50 | 100 100 50 Average Speed 118 | 100 112 124 Slowest Speed 160 | 100 150 160 Overloaded Moves . | . . . Propulsion Burnouts . | . . . Robots Hopped . | . . . Cave-ins Triggered . | . . . Exploration Rate (%) 24 | 3 38 31 Regions Visited 2 Branch Regions . Pre-discovered Areas . | . . . Known Exits Taken . | . . . Unknown Exits Taken 2 | 1 1 . Scrap Searched . | . . . Spaces Dug . | . . . Terrain Destroyed 129 | 16 27 86 Melee . | . . . Projectile . | . . . AOE 129 | 16 27 86 Actions | -11 -10 -9 --------- Run | Scr Mat Mat Total 451 | 44 129 278 Wait 39 | 24 . 15 Move 343 | 17 116 210 Hop . | . . . Pick Up 3 | . . 3 Fast Attach 15 | 2 3 10 Attach 6 | . . 6 Detach . | . . . Swap 6 | . . 6 Drop 9 | . 1 8 Fire 28 | 1 8 19 Melee . | . . . Ram 1 | . . 1 Kick 1 | . 1 . Crush . | . . . Escape Stasis . | . . . Rewire . | . . . Trap . | . . . Miscellaneous . | . . . Route ------- -11/Scrapyard -10/Materials -9/Materials (discovered 1 exit: [*Min]) History --------- Turn | Location | Event 3 | -11/Scrapyard | Discovered new exit (range 3) 48 | -11/Scrapyard | Entered Materials 189 | -10/Materials | Discovered new exit (range 14) 204 | -10/Materials | Entered another Materials area 204 | -9/Materials | Evolved 2 slots: Propulsion x1, Utility x1 340 | -9/Materials | Discovered new exit (range 8) 471 | -9/Materials | Destroyed 8 combat bots 521 | -9/Materials | Core integrity fell below 50% 555 | -9/Materials | Core integrity fell below 20% 562 | -9/Materials | Destroyed by G-34 Mercenary with Small Laser Last Messages --------------- 00548_ EMP Blaster destroyed. 00548_ U-05 Engineer lays Concrete. 00550_ R-06 Scavenger collects Terrain Scanner. 00550_ U-05 Engineer builds a Wall. 00551_ The unstable cave ceiling collapses. 00551_ Slammed into G-34 Mercenary. 00552_ U-05 Engineer lays Concrete. 00552_ K-01 Serf collects debris. 00552_ U-05 Engineer destroyed. 00553_ Acquired 19 matter. 00554_ The unstable cave ceiling collapses. 00554_ R-06 Scavenger collects Wheel. 00554_ Acquired Wheel. 00555_ U-05 Engineer builds a Wall. 00556_ K-01 Serf collects debris. 00557_ R-06 Scavenger collects Structural Scanner. 00557_ Acquired Wheel. 00559_ Acquired 12 matter. 00559_ K-01 Serf collects debris. 00561_ U-05 Engineer lays Concrete. Map ----- +----------------------------------------------------+ | + # #????????????????????????? | | # %/ #????????????????????????? | | # ##### # #????????????????????????? | | ?########### ## ####????????????????????????? | | ????????#"" # # ##???????????????????????????? | | ????????#"] #?#??????????????????????????????? | | ????????#" #????????????????????????????????? | | ????????#"" < #????????????????????##??????????? | | ????????#"] #???????????????????? #?????????? | | ????????#" #??????????? ???????? ??????????? | | ????????#"" #??????????? ??????? ??????????? | | ??????###### ##??????????? ??????? ??????????? | | ??????# # #???????????? ??????? ?###+###### | | ???????# #???????????# ?????##+## # | | ???????# # #???????????# ????? + " # | | ???????##### #??##########+####### # T ? | | ???????????# #??# ## k ] ## # " ?? | | ???????????# #??# """ ## # # """?? | | ???????????# #### "" ]## """ " # """?? | | ???????????# + "" # " r """ # | | ????#####??# #### " ## "" # k # | | ????# ?# #??# ## ###+###??? | | ????# # #### ##+ = ! ### #### # | | ????# + ug =! | | ????# # u g a | | ????# # @ ^ | | ????# ?# ## ###r ## ####### | | ????######?# # ### # ### ####??????? | | ???????????# # #?# # """# #???????? | | ???????????# # #???# # """# """ + ??????? | | ???????????# ##????# # """# """"" ###?????? | | ???????????# #?????# # """# """"" #???????? | | ???????????# #?????# # # """"" #???????? | | ??????????? #?????# ######## """ #???????? | | ??????????? #?????# #??????# ?#???????? | | ??????????? #?????# #??????# ??????????????? | | ??????????#####??????# #??????# ??????????????? | | ?????????????????????# #??????###??????????????? | | ?????????????????????# #???????????????????????? | | ?????????????????????# ????????????????????????? | | ?????????????????????????????????????????????????? | | ?????????????????????????????????????????????????? | | ?????????????????????????????????????????????????? | | ?????????????????????????????????????????????????? | | ?????????????????????????????????????????????????? | | ?????????????????????????????????????????????????? | | ?????????????????????????????????????????????????? | | ?????????????????????????????????????????????????? | | ?????????????????????????????????????????????????? | | ?????????????????????????????????????????????????? | +----------------------------------------------------+ Best States ------------- Heat Dissipation 28 Energy Generation 10 Energy Capacity 125 Matter Stores 140 Matter Capacity 300 Sight Range 16 Robot Scan Range 10 Terrain Scan Density 10 Evasion (%) 50 Recoil Reduction 1 Item Schematics ----------------- None Robot Schematics ------------------ None Fabricated ------------ Nothing Alien Tech Used ----------------- None Achievements -------------- None Challenges ------------ None Game ------ Seed LayeredTitaniumAnalyzer Manual? 0 Play Time 00:09:19 Cumulative 49.1 hours Start 2020.02.03 @ 02:42:05 End 2020.02.03 @ 02:49:27 Sessions 1 Manual Loads 0 Difficulty Rogue Special Mode AFD2018/Launchers Game No. 91 Rogue 91 Adventurer 0 Explorer 0 Win Type - Total 0 Types 0/0/0/0/0/0/0 Lore% 28 Gallery% 39 Achievement% 29 Wizard Run 0 Options --------- ASCII 0 Keyboard 0 Movement Mouse Keybinds 0 Fullscreen 2 Font 18/SmallcapsGlow Map View 76x50 Tactical HUD 1 Map Filters NONE Filters NONE Steam 1 RUN: a2bd40fe-486b-4d75-98a7-d06798991dac